[Event "Djerba Festival Open-A 2024"]
[Site "Djerba"]
[Date "2024.02.23"]
[Round "6.1"]
[White "Rudzinska, Michalina"]
[Black "Defromont, Benjamin"]
[Result "0-1"]
[ECO "C45"]
[WhiteElo "2241"]
[BlackElo "2423"]
[Annotator "TA"]
[PlyCount "98"]
[EventDate "2024.02.18"]
[EventType "swiss"]
[EventCountry "TUN"]
[SourceTitle "playchess.com"]
[Source "ChessBase"]
[SourceQuality "1"]
[TimeControl "5400+30"]

{[%evp 17,98,0,0,0,14,17,5,8,13,14,18,10,22,29,29,21,67,0,0,0,20,0,0,0,11,0,8,0,0,0,0,0,0,0,0,0,0,0,0,0,0,0,0,0,0,0,0,0,0,-7,0,0,0,0,0,0,0,-15,0,-119,-105,-196,-198,-774,-760,-741,-514,-705,-681,-608,-100,-29966,-29968,-29968,-29969,-29990,-29991,-29991,-29992,-29995,-29996,-29996,-29997]} 1. e4 {[%emt 0:00:56]} e5 {[%emt 0:07:57]} 2. Nf3 {[%emt 0:00:21]} Nc6 {[%emt 0:00:08]} 3. d4 {[%emt 0:00:24]} exd4 {[%emt 0:01:28]} 4. Nxd4 {[%emt 0:00:14]} Nf6 {[%emt 0:01:02]} 5. Nxc6 {[%emt 0:00:16]} bxc6 {[%emt 0:00:05]} 6. Bd3 {[%emt 0:00:30]} d5 {[%emt 0:07:41]} 7. exd5 {[%emt 0:00:14]} cxd5 {[%emt 0:03:20]} 8. O-O {[%emt 0:00:38]} Be7 {[%emt 0:00:14]} 9. c4 {[%emt 0:01:35]} O-O {[%emt 0:06:04]} 10. Nc3 {[%emt 0:01:20]} Be6 {[%emt 0:05:37]} 11. cxd5 {[%emt 0:02:06]} Nxd5 {[%emt 0:00:58]} 12. Nxd5 {[%emt 0:01:48] The position is equal.} Qxd5 {[%emt 0:01:24]} 13. Qc2 {[%emt 0:01:35][%csl LRc7,LRh7]} Qh5 {[%emt 0:00:36]} 14. Bf4 {[%emt 0:09:25][%cal Of1e1]} Bf6 {[%emt 0:03:52]} 15. Rac1 {[%emt 0:02:11]} c5 {[%emt 0:09:30]} 16. Be2 {[%emt 0:10:16]} Qh4 {[%emt 0:02:40]} (16... Bg4 $11 17. Bxg4 Qxg4) 17. Bg3 {[%emt 0:04:38]} ({Better is} 17. Bd6 $1 $14) 17... Qb4 $11 {[%emt 0:01:34]} 18. b3 {[%emt 0:07:00]} Rac8 {[%emt 0:02:57]} 19. Bc4 {[%emt 0:05:36]} Bxc4 {[%emt 0:01:03]} 20. Qxc4 {[%emt 0:00:07]} Rfd8 {[%emt 0:00:36]} 21. Bf4 {[%emt 0:08:27]} Bd4 {[%emt 0:01:57]} 22. h3 {[%emt 0:07:24]} h6 {[%emt 0:01:18]} 23. Rc2 {[%emt 0:04:46]} Re8 {[%emt 0:02:14][%cal Bd8e8,Be8e6,Be6g6][%mdl 32]} 24. Qd3 {[%emt 0:18:28]} Re6 {[%emt 0:02:37]} 25. Bd2 {[%emt 0:02:12]} Qb7 {[%emt 0:01:01]} 26. Bc3 {[%emt 0:01:26]} Rg6 {[%emt 0:00:38]} 27. g3 {[%emt 0:00:05]} Rd8 {[%emt 0:02:37]} 28. Bxd4 {[%emt 0:00:06]} cxd4 {[%emt 0:00:14]} 29. Re1 {[%emt 0:00:33]} Rf6 {[%emt 0:02:26]} 30. Re4 {[%emt 0:01:07]} Qd5 {[%emt 0:01:36]} 31. Rce2 {[%emt 0:01:15] White threatens Re8+ and mate.} g6 {[%emt 0:01:51]} 32. Re5 {[%emt 0:02:13]} Qc6 {[%emt 0:01:35]} 33. R2e4 {[%emt 0:00:53]} Qd7 {[%emt 0:05:34]} 34. Kg2 {[%emt 0:00:54]} Kg7 {[%emt 0:00:57]} 35. Rc5 {[%emt 0:02:42]} Rd6 {[%emt 0:00:27]} 36. Rc4 {[%emt 0:01:47]} Qf5 {[%emt 0:04:02]} 37. Qf3 {[%emt 0:00:57]} Qa5 {[%emt 0:03:02][%cal Od4d3] Threatens to win with ...d3!} 38. Ra4 {[%emt 0:00:59] [#]} (38. Qd3 $11) 38... Qb5 $1 $17 {[%emt 0:02:06] ...d3 is the strong threat.} 39. Rxa7 {[%emt 0:00:31]} (39. Qf4 $17 d3 40. Qd2) 39... Rf6 $19 {[%emt 0:00:08]} 40. Rf4 {[%emt 0:00:46]} (40. Qd1 Qf5 41. Rf4 (41. Rxd4 {leads to mate.} Qxf2+ 42. Kh1 Rxd4 43. Qg1 Qf3+ 44. Qg2 Qxg2+ 45. Kxg2 Rd2+ 46. Kg1 Rc6) 41... Qd5+ 42. Kh2 Rxf4 43. gxf4) 40... Rxf4 {[%emt 0:00:28]} 41. Qxf4 {[%emt 0:00:21][%mdl 4096] Endgame. KQR-KQR} Qd5+ {[%emt 0:00:24]} 42. Kh2 {[%emt 0:00:27]} d3 {[%emt 0:00:53] ( -> ...d2)} 43. Qd2 {[%emt 0:00:23]} Rc8 {[%emt 0:00:50] Dodges Rc7} (43... Qg5 $19 {and Black stays clearly on top.} 44. Qc3+ Kg8) 44. Qb2+ {[%emt 0:01:08][%mdl 8192] White does not recover from this.} (44. Ra5 $17 Qf3 45. Ra4) 44... Kg8 {[%emt 0:01:10] Black mates.} 45. Qd2 {[%emt 0:00:22]} Rc2 {[%emt 0:02:24]} 46. Qf4 {[%emt 0:01:31]} d2 {[%emt 0:00:47]} 47. Qb8+ {[%emt 0:00:24]} Kg7 {[%emt 0:00:08]} 48. Ra8 {[%emt 0:00:19] [#]} Qh1+ $3 {[%emt 0:01:27][%mdl 512]} 49. Kxh1 {[%emt 0:00:10]} d1=Q+ {[%emt 0:00:04] Weighted Error Value: White=0.40/Black=0.17 (very precise) .  Mistake:       	White=4     	Black=1      OK:         	White=9     	Black=9      Best:        	White=1     	Black=2      Strong:       	---       	Black=1} 0-1

[Event "Djerba Festival Open-A 2024"]
[Site "Djerba"]
[Date "2024.02.23"]
[Round "6.3"]
[White "Amdouni, Zoubaier"]
[Black "Abbes, Ali"]
[Result "1-0"]
[ECO "C45"]
[WhiteElo "2209"]
[BlackElo "2218"]
[Annotator "RC"]
[PlyCount "101"]
[EventDate "2024.02.18"]
[EventType "swiss"]
[EventCountry "TUN"]
[SourceTitle "playchess.com"]
[Source "ChessBase"]
[SourceQuality "1"]
[TimeControl "5400+30"]

1. e4 {[%emt 0:01:21]} e5 {[%emt 0:06:27]} 2. Nf3 {[%emt 0:01:37]} Nc6 {[%emt 0:00:15]} 3. d4 {[%emt 0:00:35]} exd4 {[%emt 0:00:22]} 4. Nxd4 {[%emt 0:00:05]} Nf6 {[%emt 0:00:27]} 5. Nxc6 {[%emt 0:00:05]} bxc6 {[%emt 0:00:10]} 6. Nd2 {[%emt 0:00:04]} d5 {[%emt 0:01:31]} 7. exd5 {[%emt 0:00:16]} cxd5 {[%emt 0:00:08]} 8. Bb5+ {[%emt 0:00:39]} Bd7 {[%emt 0:00:10]} 9. Bxd7+ {[%emt 0:00:05]} Qxd7 {[%emt 0:00:07]} 10. O-O {[%emt 0:00:05]} Be7 {[%emt 0:01:04]} 11. Nf3 {[%emt 0:08:12]} O-O {[%emt 0:00:23]} 12. Bg5 {[%emt 0:01:31]} h6 {[%emt 0:00:29]} 13. Bh4 {[%emt 0:00:07]} Rfe8 {[%emt 0:01:55]} 14. Re1 {[%emt 0:01:30]} c6 {[%emt 0:09:40]} 15. Qd3 {[%emt 0:11:51]} Qb7 {[%emt 0:00:45]} 16. Nd4 {[%emt 0:18:35]} Ne4 {[%emt 0:08:56]} 17. Bxe7 {[%emt 0:01:48]} Rxe7 {[%emt 0:00:08]} 18. f3 {[%emt 0:05:34]} Ng5 {[%emt 0:19:07]} 19. Rxe7 {[%emt 0:05:54]} Qxe7 {[%emt 0:00:08]} 20. Nxc6 {[%emt 0:00:05]} Qc5+ {[%emt 0:03:14]} 21. Nd4 {[%emt 0:00:08]} Re8 {[%emt 0:00:37]} 22. c3 {[%emt 0:02:59]} Ne6 {[%emt 0:08:11]} 23. Qb5 {[%emt 0:13:02]} Qxb5 {[%emt 0:00:19]} 24. Nxb5 {[%emt 0:00:01]} a6 {[%emt 0:00:10]} 25. Nd6 {[%emt 0:02:38]} Rb8 {[%emt 0:00:14]} 26. b3 {[%emt 0:00:05]} g6 {[%emt 0:00:04]} 27. Rd1 {[%emt 0:00:26]} Nc7 {[%emt 0:06:47]} 28. c4 {[%emt 0:02:00]} dxc4 {[%emt 0:00:09]} 29. Nxc4 {[%emt 0:00:14]} Nb5 {[%emt 0:00:08]} 30. Rd3 {[%emt 0:03:00]} Re8 {[%emt 0:00:39]} 31. a4 {[%emt 0:01:22]} Nc7 {[%emt 0:01:14]} 32. Rd7 {[%emt 0:00:26]} Ne6 {[%emt 0:00:30]} 33. Nd6 {[%emt 0:05:56]} Nc5 {[%emt 0:03:57]} 34. Nxe8 {[%emt 0:01:01]} Nxd7 {[%emt 0:00:05]} 35. a5 {[%emt 0:00:02]} Nb8 {[%emt 0:01:09]} 36. Nc7 {[%emt 0:04:18]} Kf8 {[%emt 0:00:10]} 37. b4 {[%emt 0:00:22]} Ke7 {[%emt 0:00:06]} 38. b5 {[%emt 0:02:34]} axb5 {[%emt 0:00:25]} 39. a6 {[%emt 0:00:28]} Nxa6 {[%emt 0:09:55]} 40. Nxa6 {[%emt 0:00:03]} Kd6 {[%emt 0:00:06]} 41. Kf2 {[%emt 0:00:23]} Kd5 {[%emt 0:00:10]} 42. Ke3 {[%emt 0:01:25]} Kc4 {[%emt 0:00:43]} 43. h4 {[%emt 0:01:49]} b4 {[%emt 0:02:16]} 44. Nxb4 {[%emt 0:00:11]} Kxb4 {[%emt 0:00:08]} 45. Kd4 {[%emt 0:00:03]} f6 {[%emt 0:06:44]} 46. Kd5 {[%emt 0:04:37]} g5 {[%emt 0:01:31]} 47. Ke6 {[%emt 0:00:52]} Kc4 {[%emt 0:00:40]} 48. Kxf6 {[%emt 0:00:34]} gxh4 {[%emt 0:00:08]} 49. Kg6 {[%emt 0:01:12]} Kd4 {[%emt 0:00:33]} 50. Kxh6 {[%emt 0:00:16]} Ke3 {[%emt 0:00:20]} 51. Kg5 {[%emt 0:00:06]} 1-0

[Event "Djerba Festival Open-A 2024"]
[Site "Djerba"]
[Date "2024.02.23"]
[Round "6.4"]
[White "Taieb, Sahbi"]
[Black "Eden, James"]
[Result "0-1"]
[ECO "A27"]
[WhiteElo "2085"]
[BlackElo "2319"]
[Annotator "RC"]
[PlyCount "80"]
[EventDate "2024.02.18"]
[EventType "swiss"]
[EventCountry "TUN"]
[SourceTitle "playchess.com"]
[Source "ChessBase"]
[SourceQuality "1"]
[TimeControl "5400+30"]

1. c4 {[%emt 1:31:00]} e5 {[%emt 0:01:50]} 2. Nc3 {[%emt 0:00:00]} Nc6 {[%emt 0:00:16]} 3. e3 {[%emt 0:00:00]} g6 {[%emt 0:02:59]} 4. Nf3 {[%emt 0:00:00]} Bg7 {[%emt 0:00:39]} 5. Be2 {[%emt 0:00:00]} Nge7 {[%emt 0:02:38]} 6. a3 {[%emt 0:00:00]} O-O {[%emt 0:01:53]} 7. O-O {[%emt 0:00:00]} d5 {[%emt 0:03:05]} 8. cxd5 {[%emt 0:00:00]} Nxd5 {[%emt 0:00:10]} 9. Qc2 {[%emt 0:00:00]} Re8 {[%emt 0:04:32]} 10. d3 {[%emt 0:00:00]} b6 {[%emt 0:02:42]} 11. Nxd5 {[%emt 0:00:00]} Qxd5 {[%emt 0:00:10]} 12. Ng5 {[%emt 0:00:00]} Bb7 {[%emt 0:01:35]} 13. Bf3 {[%emt 0:00:00]} Qd7 {[%emt 0:00:25]} 14. Bd2 {[%emt 0:00:00]} h6 {[%emt 0:02:00]} 15. Rac1 {[%emt 0:00:00]} hxg5 {[%emt 0:04:10]} 16. Bxc6 {[%emt 0:00:00]} Bxc6 {[%emt 0:00:12]} 17. Qxc6 {[%emt 0:00:00]} Qxd3 {[%emt 0:00:24]} 18. Bc3 {[%emt 0:00:00]} Qd6 {[%emt 0:03:42]} 19. Bb4 {[%emt 0:00:00]} Qxc6 {[%emt 0:00:42]} 20. Rxc6 {[%emt 0:00:00]} e4 {[%emt 0:00:31]} 21. Rxc7 {[%emt 0:00:00]} Bxb2 {[%emt 0:00:22]} 22. Rd1 {[%emt 0:00:00]} a5 {[%emt 0:01:25]} 23. Be7 {[%emt 0:00:00]} b5 {[%emt 0:09:08]} 24. g4 {[%emt 0:00:00]} b4 {[%emt 0:01:55]} 25. a4 {[%emt 0:03:15]} Be5 {[%emt 0:02:40]} 26. Rb7 {[%emt 0:04:46]} Rab8 {[%emt 0:00:11]} 27. Rxb8 {[%emt 0:03:11]} Rxb8 {[%emt 0:00:10]} 28. Rb1 {[%emt 0:00:38]} b3 {[%emt 0:00:31]} 29. Bc5 {[%emt 0:00:48]} b2 {[%emt 0:00:52]} 30. Bd4 {[%emt 0:01:06]} Bxd4 {[%emt 0:00:10]} 31. exd4 {[%emt 0:00:01]} f5 {[%emt 0:00:16]} 32. Kf1 {[%emt 0:00:04]} f4 {[%emt 0:00:29]} 33. Ke2 {[%emt 0:00:11]} Kf7 {[%emt 0:00:20]} 34. f3 {[%emt 0:01:56]} e3 {[%emt 0:00:24]} 35. Kd3 {[%emt 0:00:04]} Ke6 {[%emt 0:00:12]} 36. Kc3 {[%emt 0:00:36]} Kd5 {[%emt 0:00:13]} 37. Kd3 {[%emt 0:00:07]} Rb4 {[%emt 0:00:32]} 38. Kc3 {[%emt 0:00:57]} Rc4+ {[%emt 0:00:09]} 39. Kb3 {[%emt 0:00:49]} Rxd4 {[%emt 0:00:17]} 40. Kc3 {[%emt 0:00:23]} e2 {[%emt 0:55:39]} 0-1

[Event "Djerba Festival Open-A 2024"]
[Site "Djerba"]
[Date "2024.02.23"]
[Round "6.5"]
[White "Nassr, Lina"]
[Black "Domenech, Vianney"]
[Result "1/2-1/2"]
[ECO "A12"]
[WhiteElo "2051"]
[BlackElo "2254"]
[Annotator "TA"]
[PlyCount "74"]
[EventDate "2024.02.18"]
[EventType "swiss"]
[EventCountry "TUN"]
[SourceTitle "playchess.com"]
[Source "ChessBase"]
[SourceQuality "1"]
[TimeControl "5400+30"]

{[%evp 19,74,0,8,0,6,5,21,18,23,15,12,10,17,20,60,9,13,14,22,18,24,7,14,0,0,0,3,0,19,12,10,7,11,0,0,0,7,7,13,8,9,6,6,6,6,0,8,0,5,0,28,3,4,0,40,0,9]} 1. d4 {[%emt 0:00:02]} d5 {[%emt 0:02:45]} 2. Nf3 {[%emt 0:00:17]} Nf6 {[%emt 0:00:06]} 3. e3 {[%emt 0:00:09]} Bg4 {[%emt 0:01:08]} 4. Be2 {[%emt 0:02:32]} Nbd7 {[%emt 0:00:56]} 5. Nbd2 {[%emt 0:01:07]} e6 {[%emt 0:00:47]} 6. O-O {[%emt 0:02:10]} Bd6 {[%emt 0:00:43]} 7. b3 {[%emt 0:02:19]} O-O {[%emt 0:06:29]} 8. Bb2 {[%emt 0:00:57]} Qe7 {[%emt 0:01:21]} 9. c4 {[%emt 0:08:22]} c6 {[%emt 0:05:49]} 10. h3 {[%emt 0:04:53]} Bh5 {[%emt 0:10:21]} 11. Ne5 {[%emt 0:07:49] [#] Nxd7 is the strong threat.} Bxe2 {[%emt 0:00:58]} 12. Qxe2 {[%emt 0:00:06]} Ba3 {[%emt 0:04:10]} 13. Bxa3 {[%emt 0:11:38]} Qxa3 {[%emt 0:00:06]} 14. Nxd7 {[%emt 0:05:34]} Nxd7 {[%emt 0:00:05]} 15. Rfc1 {[%emt 0:08:13]} a5 {[%emt 0:05:57]} 16. Nf3 {[%emt 0:12:55][%cal Bd2f3,Bf3e1,Be1c2][%mdl 32]} a4 {[%emt 0:07:38]} 17. Rab1 {[%emt 0:03:08]} (17. b4 $14) 17... axb3 $11 {[%emt 0:04:40]} 18. axb3 {[%emt 0:00:05]} Qb4 {[%emt 0:13:02]} 19. Ne1 {[%emt 0:02:44]} Ra7 {[%emt 0:04:22]} 20. Nc2 {[%emt 0:05:17]} Qb6 {[%emt 0:01:09]} 21. c5 {[%emt 0:01:21]} Qc7 {[%emt 0:02:41]} 22. Ra1 {[%emt 0:01:45]} Rfa8 {[%emt 0:01:09]} 23. Qe1 {[%emt 0:02:47]} e5 {[%emt 0:07:49]} 24. Rxa7 {[%emt 0:02:03]} Rxa7 {[%emt 0:00:04]} 25. Ra1 {[%emt 0:01:29]} Qb8 {[%emt 0:01:12]} 26. Rxa7 {[%emt 0:03:29]} Qxa7 {[%emt 0:00:04][%mdl 4096] Endgame. KQN-KQN} 27. Qa1 {[%emt 0:00:13]} Qb8 {[%emt 0:00:27]} 28. b4 {[%emt 0:01:27]} h6 {[%emt 0:00:34]} 29. Qa4 {[%emt 0:03:08]} exd4 {[%emt 0:03:03]} 30. Nxd4 {[%emt 0:00:46]} g6 {[%emt 0:03:29]} 31. Qa5 {[%emt 0:02:01]} Qc8 {[%emt 0:02:49]} 32. Qa7 {[%emt 0:01:45]} Ne5 {[%emt 0:02:54]} 33. Qa2 {[%emt 0:00:55]} Nc4 {[%emt 0:02:07]} 34. Qa7 {[%emt 0:01:35]} Kg7 {[%emt 0:02:00]} 35. Qa1 {[%emt 0:00:23] [#] White threatens Ne6+ and mate.} Kh7 {[%emt 0:00:20]} 36. Qa7 {[%emt 0:00:10]} Kg7 {[%emt 0:01:24]} 37. Qa1 {[%emt 0:00:29] Intending Ne6+ and mate.} Kh7 {[%emt 0:00:05] Weighted Error Value: White=0.09 (flawless) /Black=0.07 (flawless) .  Mistake:       	White=1     	---        Inaccurate:     	White=1     	Black=2      OK:         	White=5     	Black=11     Best:        	---       	Black=1} 1/2-1/2

[Event "Djerba Festival Open-A 2024"]
[Site "Djerba"]
[Date "2024.02.23"]
[Round "6.6"]
[White "Dwilewicz, Katarzyna"]
[Black "Barbaria, Yacine"]
[Result "1/2-1/2"]
[ECO "C65"]
[WhiteElo "2129"]
[BlackElo "2206"]
[Annotator "RC"]
[PlyCount "93"]
[EventDate "2024.02.18"]
[EventType "swiss"]
[EventCountry "TUN"]
[SourceTitle "playchess.com"]
[Source "ChessBase"]
[SourceQuality "1"]
[TimeControl "5400+30"]

1. e4 {[%emt 0:00:15]} e5 {[%emt 0:01:48]} 2. Nf3 {[%emt 0:00:04]} Nc6 {[%emt 0:00:04]} 3. Bb5 {[%emt 0:00:05]} Bc5 {[%emt 0:00:15]} 4. O-O {[%emt 0:00:27]} Nf6 {[%emt 0:04:29]} 5. c3 {[%emt 0:08:09]} a6 {[%emt 0:08:58]} 6. Bxc6 {[%emt 0:02:04]} bxc6 {[%emt 0:02:09]} 7. Nxe5 {[%emt 0:04:50]} O-O {[%emt 0:09:45]} 8. d4 {[%emt 0:00:47]} Bb6 {[%emt 0:00:58]} 9. Re1 {[%emt 0:04:02]} Re8 {[%emt 0:03:55]} 10. Nd2 {[%emt 0:07:55]} d5 {[%emt 0:04:35]} 11. Nxc6 {[%emt 0:07:18]} Qd6 {[%emt 0:10:37]} 12. e5 {[%emt 0:08:41]} Qxc6 {[%emt 0:00:58]} 13. exf6 {[%emt 0:00:03]} Rxe1+ {[%emt 0:00:45]} 14. Qxe1 {[%emt 0:00:02]} Bf5 {[%emt 0:48:14]} 15. Qe5 {[%emt 0:08:46]} Bg6 {[%emt 0:00:00]} 16. Nf3 {[%emt 0:05:21]} Re8 {[%emt 0:00:00]} 17. Qg5 {[%emt 0:08:18]} gxf6 {[%emt 0:00:00]} 18. Qg3 {[%emt 0:04:48]} Qb5 {[%emt 0:00:00]} 19. h3 {[%emt 0:07:16]} Qe2 {[%emt 0:00:00]} 20. Bd2 {[%emt 0:02:34]} Qd3 {[%emt 0:00:00]} 21. Bh6 {[%emt 0:05:30]} Qf5 {[%emt 0:00:00]} 22. Qf4 {[%emt 0:02:26]} Qxf4 {[%emt 0:00:00]} 23. Bxf4 {[%emt 0:00:02]} Re2 {[%emt 0:00:00]} 24. b4 {[%emt 0:09:05]} Kg7 {[%emt 0:00:00]} 25. a4 {[%emt 0:00:44]} a5 {[%emt 0:00:00]} 26. Re1 {[%emt 0:03:09]} Rc2 {[%emt 0:00:00]} 27. Rc1 {[%emt 0:00:09]} Rxc1+ {[%emt 0:00:00]} 28. Bxc1 {[%emt 0:00:02]} Bc2 {[%emt 0:00:00]} 29. bxa5 {[%emt 0:00:16]} Bxa5 {[%emt 0:00:00]} 30. Bd2 {[%emt 0:00:25]} Bxa4 {[%emt 0:00:00]} 31. c4 {[%emt 0:00:17]} Bxd2 {[%emt 0:02:44]} 32. Nxd2 {[%emt 0:00:01]} dxc4 {[%emt 0:00:16]} 33. Nxc4 {[%emt 0:00:00]} Kg6 {[%emt 0:01:26]} 34. Ne3 {[%emt 0:00:55]} Bd7 {[%emt 0:05:34]} 35. f4 {[%emt 0:00:41]} f5 {[%emt 0:00:00]} 36. Kf2 {[%emt 0:00:19]} Bc6 {[%emt 0:00:00]} 37. g3 {[%emt 0:00:53]} Kf6 {[%emt 0:00:00]} 38. Ke2 {[%emt 0:01:30]} Be4 {[%emt 0:00:00]} 39. Kd2 {[%emt 0:00:13]} Ke6 {[%emt 0:00:04]} 40. Kc3 {[%emt 0:00:06]} Kd6 {[%emt 0:00:27]} 41. Kc4 {[%emt 0:00:40]} c6 {[%emt 0:01:12]} 42. Kb4 {[%emt 0:01:45]} Bd3 {[%emt 0:01:08]} 43. Kc3 {[%emt 0:00:06]} Bb1 {[%emt 0:00:59]} 44. Kc4 {[%emt 0:00:41]} Be4 {[%emt 0:00:14]} 45. g4 {[%emt 0:01:20]} fxg4 46. hxg4 h6 {[%emt 0:01:56]} 47. Nf1 {[%emt 0:01:00]} 1/2-1/2

[Event "Djerba Festival Open-A 2024"]
[Site "Djerba"]
[Date "2024.02.23"]
[Round "6.7"]
[White "Lorans, Sylvain"]
[Black "Brahami, Lamine"]
[Result "0-1"]
[ECO "E81"]
[WhiteElo "2076"]
[BlackElo "2178"]
[Annotator "RC"]
[PlyCount "36"]
[EventDate "2024.02.18"]
[EventType "swiss"]
[EventCountry "TUN"]
[SourceTitle "playchess.com"]
[Source "ChessBase"]
[SourceQuality "1"]
[TimeControl "5400+30"]

1. d4 {[%emt 0:00:03]} Nf6 {[%emt 0:01:05]} 2. c4 {[%emt 0:00:07]} g6 {[%emt 0:00:51]} 3. f3 {[%emt 0:00:08]} Bg7 {[%emt 0:00:33]} 4. e4 {[%emt 0:00:06]} d6 {[%emt 0:00:31]} 5. Nc3 {[%emt 0:00:07]} c6 {[%emt 0:02:02]} 6. Be3 {[%emt 0:00:38]} O-O {[%emt 0:02:13]} 7. Nge2 {[%emt 0:06:29]} a6 {[%emt 0:02:34]} 8. h4 {[%emt 0:13:37]} b5 {[%emt 0:04:13]} 9. g4 {[%emt 0:03:46]} e5 {[%emt 0:06:31]} 10. dxe5 {[%emt 0:10:10]} dxe5 {[%emt 0:02:02]} 11. Qxd8 {[%emt 0:02:14]} Rxd8 {[%emt 0:00:07]} 12. h5 {[%emt 0:01:23]} Be6 {[%emt 0:02:13]} 13. h6 {[%emt 0:04:56]} Bf8 {[%emt 1:12:05]} 14. Ng1 {[%emt 0:12:16]} Nbd7 {[%emt 0:00:00]} 15. Rc1 {[%emt 0:08:55]} Nc5 {[%emt 0:00:00]} 16. Nd5 cxd5 {[%emt 0:00:00]} 17. cxd5 {[%emt 0:06:17]} Ncxe4 {[%emt 0:00:00]} 18. dxe6 {[%emt 0:00:14]} Bb4+ {[%emt 0:02:30]} 0-1

[Event "Djerba Festival Open-A 2024"]
[Site "Djerba"]
[Date "2024.02.23"]
[Round "6.8"]
[White "Araoune, Saadi"]
[Black "Egorov, Konstantin"]
[Result "1-0"]
[ECO "D36"]
[WhiteElo "2077"]
[BlackElo "2118"]
[Annotator "NA RC"]
[PlyCount "93"]
[EventDate "2024.02.18"]
[EventType "swiss"]
[EventCountry "TUN"]
[SourceTitle "playchess.com"]
[Source "ChessBase"]
[SourceQuality "1"]
[TimeControl "5400+30"]

1. d4 {[%emt 0:07:38]} Nf6 {[%emt 0:00:38]} 2. c4 {[%emt 0:00:05]} e6 {[%emt 0:00:03]} 3. Nf3 {[%emt 0:00:05]} d5 {[%emt 0:00:26]} 4. Nc3 {[%emt 0:00:06]} Be7 {[%emt 0:00:21]} 5. cxd5 {[%emt 0:01:01]} exd5 {[%emt 0:00:04]} 6. Bg5 {[%emt 0:00:04]} c6 {[%emt 0:00:16]} 7. Qc2 {[%emt 0:00:22]} Nbd7 {[%emt 0:00:28]} 8. e3 {[%emt 0:00:07]} O-O {[%emt 0:00:10]} 9. Bd3 {[%emt 0:00:04]} Re8 {[%emt 0:00:13]} 10. O-O {[%emt 0:00:12]} Nf8 {[%emt 0:00:21]} 11. Rab1 {[%emt 0:00:48]} a5 {[%emt 0:00:13]} 12. a3 {[%emt 0:00:14]} Bd6 {[%emt 0:00:05]} 13. Bh4 {[%emt 0:06:00]} Bg4 {[%emt 0:03:51]} 14. Nd2 {[%emt 0:05:46]} Bd7 {[%emt 0:06:43]} 15. Bg3 {[%emt 0:04:42]} Bxg3 {[%emt 0:01:16]} 16. hxg3 {[%emt 0:00:05]} Ng4 $11 {[%emt 0:08:50]} 17. Rfe1 {[%emt 0:03:03]} h5 {[%emt 0:18:31]} 18. Nf3 {[%emt 0:04:34]} Be6 {[%emt 0:01:38]} 19. b4 {[%emt 0:06:04]} axb4 {[%emt 0:00:08]} 20. axb4 {[%emt 0:00:02]} Nd7 {[%emt 0:00:48]} 21. Na4 {[%emt 0:02:47]} Ndf6 {[%emt 0:20:18]} 22. Nc5 {[%emt 0:03:19]} Bc8 {[%emt 0:05:39]} 23. b5 {[%emt 0:18:31]} b6 {[%emt 0:02:50]} 24. Na4 {[%emt 0:04:39]} cxb5 {[%emt 0:06:00]} 25. Bxb5 {[%emt 0:32:42]} Re7 {[%emt 0:01:28]} 26. Bd3 {[%emt 0:00:00]} Rb7 {[%emt 0:00:36]} 27. Rb4 {[%emt 0:00:00]} Bd7 {[%emt 0:05:17]} 28. Reb1 {[%emt 0:00:00]} Bxa4 {[%emt 0:00:31]} 29. Rxa4 {[%emt 0:00:00]} Rc8 {[%emt 0:05:21]} 30. Qe2 {[%emt 0:00:00]} Rbc7 {[%emt 0:05:00]} 31. Raa1 {[%emt 0:00:00]} g6 {[%emt 0:01:26]} 32. Ne5 {[%emt 0:00:00]} Nxe5 {[%emt 0:00:26]} 33. dxe5 {[%emt 0:00:00]} Ng4 {[%emt 0:00:40]} 34. e6 {[%emt 0:00:00]} f5 {[%emt 0:00:25]} 35. Qb2 {[%emt 0:03:16]} Qd6 {[%emt 0:00:59]} 36. Ra6 {[%emt 0:01:20]} Qxe6 {[%emt 0:05:24]} 37. Rxb6 {[%emt 0:00:01]} Rc6 {[%emt 0:00:25]} 38. Rxc6 {[%emt 0:00:26]} Qxc6 {[%emt 0:00:12]} 39. Be2 {[%emt 0:01:11]} Nf6 {[%emt 0:01:05]} 40. Qd4 {[%emt 0:00:36]} Ne4 {[%emt 0:00:50]} 41. Rb6 {[%emt 0:00:23]} Qc1+ {[%emt 0:00:04]} 42. Bf1 {[%emt 0:00:21]} Kf7 {[%emt 0:00:53]} 43. Qxd5+ {[%emt 0:00:10]} Kg7 {[%emt 0:00:25]} 44. Qe6 {[%emt 0:01:08]} Qxf1+ {[%emt 0:00:38]} 45. Kxf1 {[%emt 0:00:04]} Rc1+ {[%emt 0:00:03]} 46. Ke2 {[%emt 0:00:05]} Rc2+ {[%emt 0:00:08]} 47. Kd1 {[%emt 0:00:09]} 1-0